bitfinex/quotes_ETHUSD_20241129
["timestamp","ask_amount","ask_price","bid_price","bid_amount"]
[1732888971134,2.76427,3617.6,3617.2,0.8281]
[1732888972568,2.76412,3617.8,3617.2,0.8281]
[1732888972778,2.76434,3617.5,3617.2,0.8281]
[1732888973158,2.76434,3617.5,3617.2,1.187385]
[1732888973881,2.76434,3617.5,3617.0,3.0]
[1732888974035,2.76411,3617.8,3616.6,0.7807]
[1732888974231,2.76471,3617.1,3616.6,0.7807]
[1732888974462,0.7881,3617.9,3616.6,0.7807]
[1732888974645,2.76436,3617.5,3616.8,2.76481]
[1732888974859,2.76436,3617.5,3616.9,3.119331]
[1732888975062,2.76428,3617.6,3616.9,3.119331]
[1732888975247,2.76428,3617.6,3617.0,0.7813]
[1732888975636,2.76442,3617.4,3617.0,0.7813]
[1732888977385,2.76435,3617.5,3617.0,0.7813]
[1732888977674,2.76442,3617.4,3617.1,0.3900631]
[1732888977978,2.76442,3617.4,3617.0,0.7813]
[1732888978706,2.76496,3616.7,3616.5,0.7619]
[1732888978861,1.3257,3618.1,3616.5,0.7619]
[1732888978862,2.76486,3616.9,3616.5,0.7619]
[1732888979477,2.76493,3616.8,3616.5,0.7619]
[1732888980401,2.76458,3617.2,3616.5,3.52699]
[1732888980562,2.76458,3617.2,3616.6,3.394234]
[1732888980761,2.76443,3617.4,3616.8,5.76484]
[1732888980958,2.76454,3617.3,3616.7,3.0]
[1732888981202,2.76454,3617.3,3616.7,5.76491]
[1732888981989,0.7832,3618.0,3616.7,5.76491]
[1732888982198,2.76439,3617.5,3616.9,2.76476]
[1732888982394,2.76419,3617.7,3617.0,3.57021]
[1732888982767,0.7832,3618.0,3617.0,0.8055]
[1732888982768,2.76439,3617.5,3617.0,0.8055]
[1732888983165,0.7832,3618.0,3617.0,0.8055]
[1732888983365,2.76454,3617.3,3617.0,0.8055]
[1732888983815,2.76437,3617.5,3617.0,0.8055]
[1732888983970,2.76437,3617.5,3617.1,0.357036]
[1732888984365,2.76449,3617.3,3617.1,0.357036]
[1732888984584,2.76456,3617.2,3617.0,0.8055]
[1732888985069,0.1537706,3618.5,3618.0,0.7522]
[1732888985807,0.1537706,3618.5,3618.3,2.76372]
[1732888986104,0.1537706,3618.5,3618.0,6.51614]
[1732888986275,0.1537706,3618.5,3618.0,1.680231]
[1732888986794,2.9173406,3618.5,3618.0,0.7522]
[1732888986994,0.1537706,3618.5,3618.0,3.51613]
[1732888987902,2.76377,3618.3,3618.0,0.7522]
[1732888988207,2.76388,3618.1,3618.0,0.7522]
[1732888988380,2.76377,3618.3,3618.0,0.7522]
[1732888988585,0.1537706,3618.5,3618.0,0.7522]
[1732888988889,2.76388,3618.1,3617.2,2.76454]
[1732888989094,2.76403,3617.9,3617.3,1.072354]
[1732888989273,0.1537706,3618.5,3617.3,1.072354]
[1732888989479,2.76396,3618.0,3617.4,2.76436]
[1732888989775,2.76404,3617.9,3617.4,2.76436]
[1732888989964,2.76404,3617.9,3617.3,1.072354]
[1732888990199,2.76441,3617.4,3617.3,0.7959]
[1732888990379,2.76441,3617.4,3616.9,0.81]
[1732888990567,2.76412,3617.8,3616.9,0.81]
[1732888990767,2.76443,3617.4,3616.9,0.81]
[1732888991005,5.52858,3617.6,3617.0,0.357484]
[1732888991207,2.76426,3617.6,3617.0,3.122194]
[1732888991594,2.76412,3617.8,3617.1,5.76462]
[1732888991766,2.76428,3617.6,3617.0,0.357484]
[1732888991970,2.76428,3617.6,3616.9,0.81]
[1732888992192,0.7703,3618.3,3616.9,3.81]
[1732888992193,2.76448,3617.4,3616.9,3.81]
[1732888992720,2.76448,3617.4,3617.0,3.0]
[1732888993022,2.76399,3618.0,3616.9,0.81]
[1732888993172,2.76399,3618.0,3617.0,3.0]
[1732888993173,2.76434,3617.5,3617.0,3.0]
[1732888993374,2.76456,3617.2,3616.9,0.81]
[1732888993806,2.76456,3617.3,3616.9,0.81]
[1732888994004,3.94276815,3618.3,3615.0,2.76622]
[1732888994005,2.7638,3618.2,3616.5,0.8057]
[1732888994204,2.76465,3617.1,3616.5,3.57079]
[1732888994421,2.76465,3617.1,3616.6,0.357079]
[1732888994617,5.52935,3617.1,3616.6,0.357079]
[1732888994920,2.76472,3617.0,3616.6,0.357079]
[1732888995084,2.76472,3617.0,3616.5,3.8057]
[1732888995582,2.76463,3617.2,3616.5,6.57077]
[1732888995781,2.76463,3617.2,3616.6,2.76496]
[1732888996218,2.76439,3617.5,3616.8,2.76485]
[1732888996525,2.76439,3617.5,3616.6,2.76502]
[1732888996526,2.76408,3617.9,3616.9,0.797]
[1732888996819,2.76425,3617.7,3616.9,3.56178]
[1732888997000,2.76412,3617.8,3617.0,6.120858]
[1732888997203,2.76421,3617.7,3617.1,2.76462]
[1732888997517,2.76371,3618.4,3617.0,0.356178]
[1732888997518,0.7758,3617.8,3617.0,0.356178]
[1732888997720,2.85021477,3618.3,3616.9,0.797]
[1732888997890,2.7638,3618.2,3616.8,3.0]
[1732888998225,2.5643,3617.6,3617.1,0.82]
[1732888998389,2.76416,3617.8,3617.2,2.76456]
[1732888998732,0.1537706,3618.5,3617.0,2.76471]
[1732888998733,2.9173606,3618.5,3617.8,0.78]
[1732888999515,2.76378,3618.3,3617.8,0.78]
[1732889000125,2.76369,3618.4,3617.8,3.5441]
[1732889000419,2.9173706,3618.5,3617.9,2.76402]
[1732889000787,2.9173706,3618.5,3617.8,0.78]
[1732889000788,2.76371,3618.4,3617.8,0.78]
[1732889001008,2.76371,3618.4,3617.9,0.630838]
[1732889001585,2.76373,3618.3,3617.9,0.630838]
[1732889002525,2.9173506,3618.5,3617.9,0.630838]
[1732889002683,2.9173506,3618.5,3617.9,3.630838]
[1732889002879,2.76374,3618.3,3617.9,0.630838]
[1732889003080,2.76374,3618.3,3618.0,0.4410838]
[1732889003827,2.76381,3618.2,3618.0,0.4410838]
[1732889004326,0.1537706,3618.5,3617.8,0.78]
[1732889004485,2.76373,3618.3,3617.8,0.78]
[1732889005182,2.9174006,3618.5,3617.8,3.54409]
[1732889005381,2.9174006,3618.5,3617.9,2.76402]
[1732889005382,0.1537706,3618.5,3617.9,2.76402]
[1732889005607,0.1537706,3618.5,3618.0,2.76395]
[1732889005828,2.76365,3618.4,3618.1,0.630797]
[1732889006925,2.76373,3618.3,3618.1,0.630797]
[1732889007731,2.7638,3618.2,3618.1,0.630797]
[1732889008019,2.76414,3617.8,3617.4,0.7747]
[1732889008226,2.76396,3618.0,3617.4,0.7747]
[1732889008397,2.76404,3617.9,3617.4,3.5391]
[1732889008615,2.76404,3617.9,3617.5,0.6938467]
[1732889008818,2.76404,3617.9,3617.4,3.5391]
[1732889009603,2.76401,3618.0,3617.4,0.7747]
[1732889009855,2.7638,3618.3,3617.4,3.53907]
[1732889010003,2.76397,3618.0,3617.4,3.53907]
[1732889010202,2.76397,3618.0,3617.5,0.630363]
[1732889010442,2.76407,3617.9,3617.5,0.630363]
[1732889010647,2.76393,3618.1,3617.5,0.630363]
[1732889010829,2.76408,3617.9,3617.5,0.630363]
[1732889011150,0.1537706,3618.5,3618.0,0.7804]
[1732889011332,0.1537706,3618.5,3618.1,3.118267]
[1732889011707,0.1537706,3618.5,3618.1,0.354437]
[1732889013051,2.9173406,3618.5,3618.1,0.354437]
[1732889013407,0.1537706,3618.5,3618.1,0.354437]
[1732889013663,0.1537706,3618.5,3618.4,2.76365]
[1732889013860,0.1537706,3618.5,3618.4,3.9875787]
[1732889015120,0.1537706,3618.5,3618.4,6.9875787]
[1732889015944,0.1537706,3618.5,3618.4,1.2239287]
[1732889016523,0.1537706,3618.5,3618.4,3.9875787]
[1732889017259,0.1537706,3618.5,3618.4,1.2239287]
[1732889018662,0.1537706,3618.5,3618.4,3.9875787]
[1732889019888,0.1537706,3618.5,3618.4,1.2239287]
[1732889020326,0.1537706,3618.5,3618.4,3.9875787]
[1732889020965,0.1537706,3618.5,3618.4,6.9875787]
[1732889022043,2.76274,3619.6,3618.7,2.76339]
[1732889022389,2.76274,3619.6,3618.8,3.316036]
[1732889024169,2.76283,3619.5,3618.8,3.316036]
[1732889024851,2.76265,3619.7,3618.9,2.76327]
[1732889025061,2.76265,3619.7,3619.0,2.76319]
[1732889025455,2.76276,3619.6,3618.9,2.76326]
[1732889025778,2.76276,3619.6,3618.9,3.3711966]
[1732889026279,0.105,3620.0,3619.1,3.52937]
[1732889026492,0.005,3621.0,3620.2,2.76222]
[1732889026774,0.005,3621.0,3620.9,2.76174]
[1732889027138,0.005,3621.0,3620.8,2.76175]
[1732889027394,0.005,3621.0,3620.8,2.76176]
[1732889027609,0.005,3621.0,3620.9,3.58844]
[1732889027776,0.005,3621.0,3620.9,0.8267]
[1732889027975,0.005,3621.0,3620.9,1.1598066]
[1732889028204,0.005,3621.0,3620.9,10.08471801]
[1732889028374,0.005,3621.0,3620.9,1.1598066]
[1732889028778,0.005,3621.0,3620.9,3.9215466]
[1732889029003,0.005,3621.0,3620.9,6.9215466]
[1732889029515,0.005,3621.0,3620.9,1.1598066]
[1732889030112,0.1537706,3622.0,3621.1,0.817]
[1732889030315,2.9147006,3622.0,3621.1,0.817]
[1732889030512,2.9147306,3622.0,3621.1,0.817]
[1732889030674,0.1537706,3622.0,3621.1,0.817]
[1732889031494,2.76098,3621.9,3621.1,0.817]
[1732889031692,2.9147306,3622.0,3621.1,1.1987]
[1732889031914,0.1537706,3622.0,3621.1,1.1987]
[1732889032129,0.1537706,3622.0,3621.1,0.817]
[1732889032469,0.1537706,3622.0,3621.2,2.76149]
[1732889032674,0.1537706,3622.0,3621.1,0.817]
[1732889033111,0.1537706,3622.0,3621.5,0.767]
[1732889034635,2.76103,3621.9,3621.5,0.767]
[1732889035159,2.9146806,3622.0,3621.5,0.767]
[1732889035285,0.1537706,3622.0,3621.5,0.767]
[1732889036288,2.9147306,3622.0,3621.5,0.767]
[1732889036634,2.761,3621.9,3621.5,0.767]
[1732889037123,0.9471706,3622.0,3620.7,0.8098]
[1732889037484,2.76098,3621.9,3620.7,0.8098]
[1732889037835,2.76175,3620.9,3620.2,0.8098]
[1732889038124,2.76193,3620.7,3620.3,0.39729714]
[1732889038281,2.76197,3620.6,3620.3,0.39729714]
[1732889038486,2.76182,3620.8,3620.3,0.39729714]
[1732889038687,2.76203,3620.6,3620.3,0.39729714]
[1732889039134,2.76209,3620.5,3620.3,0.39729714]
[1732889039315,0.8054,3621.2,3620.2,0.8098]
[1732889039514,2.76197,3620.6,3620.2,0.8098]
[1732889040040,2.76182,3620.8,3620.2,0.8098]
[1732889040541,2.76151,3621.2,3620.2,0.8098]
[1732889040737,2.76143,3621.3,3620.2,0.8098]
[1732889040899,2.76198,3620.6,3620.2,0.8098]
[1732889041095,2.76205,3620.5,3620.2,0.8098]
[1732889041408,2.76213,3620.4,3620.2,0.8098]
[1732889042919,2.76197,3620.6,3620.2,0.8098]
[1732889043161,2.76212,3620.4,3620.2,0.8098]
[1732889043380,2.7622,3620.3,3620.2,0.8098]
[1732889043671,2.7622,3620.3,3619.0,0.53813929]
[1732889043672,2.76258,3619.8,3618.9,3.77110801]
[1732889043816,2.76282,3619.5,3619.4,0.8107]
[1732889044856,2.76282,3619.5,3618.1,0.65125791]
[1732889044857,2.76305,3619.2,3618.9,0.8107]
[1732889045064,2.76256,3619.9,3618.9,0.8107]
[1732889045246,0.8054,3620.5,3619.2,3.16317141]
[1732889045247,2.76236,3620.1,3619.2,3.16317141]
[1732889045418,2.76228,3620.2,3619.4,0.8081]
[1732889045761,2.7622,3620.3,3619.4,0.8081]
[1732889045919,2.76228,3620.2,3619.4,0.8081]
[1732889046756,3.52118,3620.9,3619.4,0.8081]
[1732889046757,2.76236,3620.1,3619.4,0.8081]
[1732889047051,0.7594,3620.9,3619.4,0.8081]
[1732889047052,2.76231,3620.2,3619.4,0.8081]
[1732889047370,2.76231,3620.2,3619.5,0.75638985]
[1732889047577,2.76241,3620.1,3619.5,0.75638985]
[1732889047734,2.76259,3619.8,3619.5,0.75638985]
[1732889047934,2.76241,3620.1,3619.5,0.75638985]
[1732889048161,2.76247,3620.0,3619.5,0.75638985]
[1732889048471,2.76252,3619.9,3619.6,0.45644899]
[1732889048836,2.76252,3619.9,3619.4,0.8081]
[1732889049232,2.76251,3619.9,3619.4,0.8081]
[1732889049644,2.76202,3620.6,3619.4,0.8081]
[1732889049846,0.55,3620.8,3619.4,0.8081]
[1732889050093,2.76258,3619.8,3619.4,0.8081]
[1732889050463,2.76223,3620.3,3619.5,0.02762213]
[1732889050660,2.76238,3620.1,3619.6,0.63375196]
[1732889051008,2.76226,3620.3,3619.6,0.63375196]
[1732889051794,0.7594,3620.9,3619.6,0.63375196]
[1732889052305,2.76207,3620.5,3619.6,3.39647196]
[1732889052805,2.7622,3620.3,3619.6,3.39647196]
[1732889053003,0.7594,3620.9,3619.6,3.39647196]
[1732889053004,2.76205,3620.5,3619.7,0.9967452]
[1732889053202,2.76205,3620.5,3619.7,3.7593452]
[1732889053500,2.76174,3620.9,3620.1,2.76228]
[1732889053706,2.65556805,3622.0,3620.2,0.8283]
[1732889053707,2.76169,3621.0,3620.2,0.8283]
[1732889054008,2.76169,3621.0,3620.3,3.0]
[1732889054210,2.76175,3620.9,3620.4,0.659056]
[1732889054366,2.76166,3621.0,3620.4,0.659056]
[1732889054698,2.76143,3621.3,3619.9,3.8146]
[1732889054935,0.7538,3621.5,3620.1,3.0]
[1732889055075,0.7538,3621.5,3619.9,0.8146]
[1732889055076,2.76181,3620.9,3620.2,3.0]
[1732889055280,2.76149,3621.3,3620.6,0.8293]
[1732889055599,2.76143,3621.3,3620.6,3.59125]
[1732889055764,3.51509,3621.5,3620.7,0.359125]
[1732889056167,0.7538,3621.5,3620.7,3.121015]
[1732889056372,2.76152,3621.2,3620.7,0.359125]
[1732889057077,2.76135,3621.5,3620.8,2.76178]
[1732889057281,2.76105,3621.8,3620.7,0.359125]
[1732889057649,2.76164,3621.1,3620.8,0.6950465]
[1732889057792,2.76105,3621.8,3620.8,0.6950465]
[1732889057995,2.76126,3621.6,3621.0,2.7616]
[1732889058193,2.76122,3621.6,3621.0,2.7616]
[1732889058601,0.8054,3621.9,3620.9,3.0]
[1732889058796,2.76138,3621.4,3621.0,3.36950465]
[1732889059001,2.76138,3621.4,3621.0,0.36950465]
[1732889059346,0.8054,3621.9,3621.0,0.36950465]
[1732889059555,2.76153,3621.2,3620.7,3.0]
[1732889059839,2.76172,3621.0,3620.2,2.76227]
[1732889059992,2.76185,3620.8,3620.2,2.76227]
[1732889061542,2.7621,3620.5,3620.1,3.7694]
[1732889061716,2.7621,3620.5,3620.2,0.37694]
[1732889061896,2.76192,3620.7,3620.2,0.37694]
[1732889062404,2.76192,3620.7,3620.1,3.7694]
[1732889062926,2.76201,3620.6,3620.1,3.7694]
[1732889063103,2.76213,3620.4,3620.1,0.7694]
[1732889063304,2.76206,3620.5,3620.1,0.7694]
[1732889063995,2.76288,3619.4,3617.6,0.1]
[1732889064198,2.76204,3620.5,3618.5,0.809]
[1732889064199,2.76305,3619.2,3618.5,0.809]
[1732889064434,2.76262,3619.8,3618.6,3.12075]
[1732889064435,2.76258,3619.8,3618.6,3.12075]
[1732889064636,2.7631,3619.2,3618.6,3.12075]
[1732889064946,2.76316,3619.1,3618.6,0.35727]
[1732889065752,2.76283,3619.5,3618.6,3.35727]
[1732889066253,2.76333,3618.9,3618.6,0.35727]
[1732889066560,2.76356,3618.6,3617.8,0.8195]
[1732889066910,2.76331,3618.9,3617.8,0.8195]
[1732889067145,2.76373,3618.3,3617.8,0.8195]
[1732889067459,2.76331,3618.9,3617.5,2.76427]
[1732889067460,2.76368,3618.4,3617.5,2.76427]
[1732889067745,0.7801,3619.1,3617.6,0.276433]
[1732889067746,2.7639,3618.1,3617.6,0.276433]
[1732889067908,2.76395,3618.0,3617.6,0.276433]
[1732889068102,2.76405,3617.9,3617.4,0.7687]
[1732889068522,2.76417,3617.8,3617.4,0.7687]
[1732889068719,2.76387,3618.2,3617.4,0.7687]
[1732889069310,2.76389,3618.1,3617.4,0.7687]
[1732889069949,2.76389,3618.1,3617.4,6.53311]
[1732889070158,2.76424,3617.7,3617.5,0.653311]
[1732889070455,2.76357,3618.5,3617.2,3.0]
[1732889070660,2.76409,3617.9,3617.3,3.0]
[1732889070950,2.76393,3618.1,3617.3,3.0]
[1732889071149,2.76393,3618.1,3617.5,2.76433]
[1732889071351,0.8054,3618.6,3617.5,2.76433]
[1732889071659,2.76372,3618.4,3617.7,2.76412]
[1732889072051,2.76378,3618.3,3617.6,4.168783]
[1732889072348,2.76348,3618.7,3617.9,2.76397]
[1732889072551,2.76351,3618.6,3618.0,2.76394]
[1732889072799,2.76334,3618.8,3618.0,2.76394]
[1732889073094,2.76343,3618.7,3618.1,0.552804]
[1732889073594,2.76355,3618.6,3618.1,0.552804]
[1732889073782,2.76355,3618.6,3617.9,2.76399]
[1732889074167,2.76334,3618.8,3618.0,2.76395]
[1732889074699,2.7632,3619.0,3617.7,0.8097]
[1732889074900,2.76312,3619.1,3618.4,2.76365]
[1732889075461,2.76312,3619.1,3618.3,3.8097]
[1732889075770,3.56836,3619.3,3617.8,2.7641]
[1732889075771,0.8054,3619.3,3617.8,2.7641]
[1732889075954,2.76377,3618.3,3617.7,0.7633]
[1732889076154,2.76464,3617.1,3617.0,0.28826996]
[1732889076355,0.8054,3617.1,3616.2,0.7633]
[1732889076989,2.76464,3617.1,3616.2,0.7633]
[1732889077192,2.76464,3617.1,3616.3,0.35287]
[1732889077361,2.7645,3617.3,3616.3,3.11806]
[1732889077568,2.7645,3617.3,3616.5,2.76503]
[1732889077769,2.7645,3617.3,3616.6,2.76502]
[1732889077963,2.76475,3617.0,3616.3,0.35287]
[1732889078201,0.55,3617.5,3616.3,0.35287]
[1732889078354,2.76503,3616.6,3616.2,0.7633]
[1732889078554,2.76503,3616.6,3615.3,3.17161413]
[1732889078555,2.76516,3616.5,3615.7,3.52665]
[1732889078780,2.76516,3616.5,3615.7,0.761]
[1732889078781,2.76521,3616.4,3615.7,0.761]
[1732889078995,5.53032,3616.5,3615.7,0.761]
[1732889079205,2.76495,3616.7,3615.7,0.761]
[1732889079496,2.76464,3617.1,3615.7,0.761]
[1732889079810,0.55,3617.2,3615.7,3.5267]
[1732889079960,2.76541,3616.1,3615.8,0.35267]
[1732889080164,2.76541,3616.1,3615.1,3.0]
[1732889080370,2.76563,3615.8,3615.2,0.8079]
[1732889080709,2.76568,3615.8,3615.2,0.8079]
[1732889081006,2.76575,3615.7,3615.2,0.8079]
[1732889081364,2.7658,3615.6,3615.2,0.8079]
[1732889081565,3.57065,3616.3,3614.8,0.7594]
[1732889081767,2.76596,3615.4,3614.8,3.5258]
[1732889081967,2.76584,3615.6,3614.8,0.7594]
[1732889082205,0.8054,3616.3,3615.0,2.76622]
[1732889082364,2.76577,3615.7,3615.1,2.76617]
[1732889082565,0.8054,3616.3,3615.2,0.27937096]
[1732889082764,2.76577,3615.7,3614.8,0.7594]
[1732889083010,0.8054,3616.3,3615.0,2.7662]
[1732889083314,2.76567,3615.8,3615.0,2.7662]
[1732889083606,2.76567,3615.8,3615.1,2.76615]
[1732889083792,2.76567,3615.8,3615.2,0.553247]
[1732889083992,2.76526,3616.3,3615.3,3.57658]
[1732889084312,2.76526,3616.3,3615.4,2.76594]
[1732889084507,0.7761,3616.9,3615.5,2.76582]
[1732889084508,2.76538,3616.2,3615.5,2.76582]
[1732889084697,2.76519,3616.4,3615.6,3.699951]
[1732889085004,0.7761,3616.9,3615.3,0.8106]
[1732889085168,2.7654,3616.2,3615.4,2.7659]
[1732889085366,0.7761,3616.9,3615.4,2.7659]
[1732889085599,0.7761,3616.9,3615.3,3.8106]
[1732889085780,2.76571,3615.8,3615.3,0.8106]
[1732889086122,3.17161413,3616.6,3615.4,0.4130007]
[1732889086123,2.76579,3615.6,3615.4,0.4130007]
[1732889086404,2.76579,3615.6,3615.2,0.553247]
[1732889086612,2.76574,3615.7,3615.0,2.76619]
[1732889086762,2.7658,3615.6,3615.0,2.76619]
[1732889086968,2.76565,3615.8,3615.0,3.0]
[1732889087167,2.76565,3615.8,3615.0,5.76624]
[1732889087387,2.7658,3615.6,3615.1,0.657434]
[1732889087828,0.8054,3616.0,3615.1,0.657434]
[1732889088142,2.76593,3615.5,3615.1,0.657434]
[1732889088634,2.76597,3615.4,3614.9,0.8081]
[1732889089021,2.76602,3615.3,3614.9,0.8081]
[1732889089229,2.76595,3615.4,3614.9,0.8081]
[1732889089428,2.76573,3615.7,3613.6,5.93893413]
[1732889089429,2.76622,3615.1,3614.3,3.52728]
[1732889089600,2.76622,3615.1,3614.4,2.7667]
[1732889089800,2.76622,3615.1,3614.5,0.629398]
[1732889090096,2.76642,3614.8,3614.5,0.629398]
[1732889090309,2.76649,3614.7,3614.3,0.7605]
[1732889090533,2.766,3615.4,3614.3,0.7605]
[1732889090744,2.76652,3614.7,3614.3,0.7605]
[1732889091622,0.7687,3615.7,3614.3,0.7605]
[1732889091623,2.76656,3614.6,3614.3,0.7605]
[1732889091795,2.76641,3614.8,3614.3,0.7605]
[1732889091998,2.76649,3614.7,3614.3,0.7605]
[1732889092450,0.7687,3615.7,3614.3,0.7605]
[1732889092451,2.76624,3615.1,3614.4,3.41945]
[1732889092738,2.76638,3614.9,3614.4,0.65274]
[1732889093317,2.7665,3614.7,3614.1,3.0]
[1732889093509,2.76638,3614.9,3614.1,3.0]
[1732889093738,2.76598,3615.4,3614.1,3.0]
[1732889093944,2.76633,3614.9,3614.2,2.76685]
[1732889094435,2.76642,3614.8,3614.1,5.76692]
[1732889094647,2.7662,3615.1,3614.1,5.76692]
[1732889094648,2.76628,3615.0,3614.3,2.76678]
[1732889094850,2.7662,3615.1,3614.3,2.76678]
[1732889095009,2.76634,3614.9,3614.3,2.76678]
[1732889095252,2.7662,3615.1,3614.2,0.931423]
[1732889095442,2.7662,3615.1,3614.5,2.76663]
[1732889095994,2.76625,3615.1,3614.4,2.7667]
[1732889096279,2.76625,3615.1,3614.5,0.6464973]
[1732889096447,2.76625,3615.1,3614.5,3.4130773]
[1732889096647,3.53448,3615.7,3614.5,0.6464973]
[1732889096648,2.76586,3615.5,3614.5,0.6464973]
[1732889096863,2.76586,3615.5,3614.2,3.698263]
[1732889097186,2.76635,3614.9,3614.2,6.698223]
[1732889097477,2.76645,3614.8,3614.2,0.931423]
[1732889097774,2.76645,3614.8,3614.2,2.76686]
[1732889097989,2.76626,3615.0,3613.9,0.7803]
[1732889097990,2.76651,3614.7,3614.1,5.76693]
[1732889098338,2.76651,3614.7,3613.9,0.7803]
[1732889098339,0.7841,3614.7,3613.9,0.7803]
[1732889098571,2.76679,3614.3,3613.9,0.7803]
[1732889098790,2.76691,3614.2,3613.9,0.7803]
[1732889099381,2.76679,3614.3,3613.5,3.51979]
[1732889099579,0.7841,3614.7,3613.5,1.104379]
[1732889099794,2.76692,3614.2,3613.5,1.104379]
[1732889099946,2.76706,3614.0,3613.5,0.7524]
[1732889100283,2.76724,3613.7,3613.1,2.7677]
[1732889100493,2.76702,3614.0,3613.2,0.8269]
[1732889100654,2.76655,3614.6,3613.6,2.76726]
[1732889100845,2.76672,3614.4,3613.6,3.320741]
[1732889101048,2.76672,3614.4,3613.7,2.76718]
[1732889101483,2.76679,3614.3,3613.6,2.76726]
[1732889101654,2.76689,3614.2,3613.6,2.76726]
[1732889101858,2.76689,3614.2,3613.4,2.76746]
[1732889102060,2.76689,3614.2,3613.7,2.76724]
[1732889102370,2.76689,3614.2,3613.5,2.76734]
[1732889102577,2.76672,3614.4,3613.5,0.63617]
[1732889102812,2.76696,3614.1,3613.4,2.7674]
[1732889103008,2.76684,3614.3,3613.6,2.76728]
[1732889103431,0.7841,3614.7,3613.6,2.76728]
[1732889103432,2.76687,3614.2,3613.6,2.76728]
[1732889103723,0.7841,3614.7,3613.2,0.8269]
[1732889103933,2.76701,3614.1,3613.5,2.76734]
[1732889104216,2.76734,3613.6,3613.2,0.8269]
[1732889104736,2.76717,3613.8,3613.2,3.8269]
[1732889105027,0.7641,3613.9,3613.2,3.8269]
[1732889105181,0.7641,3613.9,3613.2,0.8269]
[1732889105182,2.76733,3613.6,3613.2,0.8269]
[1732889105379,2.76747,3613.5,3613.0,3.0]
[1732889105630,2.76734,3613.6,3613.0,2.76776]
[1732889105982,2.76734,3613.6,3612.9,0.8315]
[1732889106317,2.76734,3613.6,3613.0,2.76777]
[1732889106540,3.53126,3613.9,3612.9,3.8315]
[1732889106750,0.8054,3614.2,3613.0,0.636719]
[1732889106876,2.76676,3614.4,3613.8,3.56545]
[1732889107080,2.76655,3614.6,3614.0,2.767]
[1732889107287,2.76662,3614.6,3614.0,2.76697]
[1732889107531,2.76648,3614.7,3614.0,2.76696]
[1732889107681,0.8054,3614.8,3614.0,2.76696]
[1732889107878,0.8054,3614.8,3614.2,2.76685]
[1732889108078,3.5718,3614.8,3614.0,3.123486]
[1732889108318,2.76656,3614.6,3614.0,3.123486]
[1732889108524,3.5718,3614.8,3614.0,3.123486]
[1732889108886,0.8054,3614.8,3614.0,0.356526]
[1732889109083,2.7667,3614.5,3613.8,3.56544]
[1732889109588,3.57144,3615.3,3614.5,2.76657]
[1732889109900,2.76622,3615.1,3614.6,0.7543]
[1732889110080,0.8054,3615.3,3614.7,2.76641]
[1732889110330,2.76595,3615.4,3614.8,2.76635]
[1732889110770,2.76586,3615.6,3614.8,2.76635]
[1732889110771,2.76586,3615.6,3614.8,3.395076]
[1732889110969,0.8054,3615.7,3614.8,0.628726]
[1732889111173,2.76617,3615.2,3614.6,0.7543]
[1732889111375,2.76608,3615.3,3614.6,0.7543]
[1732889111549,2.76579,3615.6,3614.6,0.7543]
[1732889111752,2.76609,3615.3,3614.5,2.76662]
[1732889111956,2.76609,3615.3,3614.3,0.7838]
[1732889111957,2.76589,3615.5,3614.9,2.76627]
[1732889112156,0.8054,3615.7,3614.3,0.7838]
[1732889112358,0.8054,3615.7,3613.9,0.7733]
[1732889112559,2.76693,3614.2,3613.5,0.7733]
[1732889113183,2.76693,3614.2,3613.6,2.76731]
[1732889114682,0.8054,3614.7,3613.5,0.7733]
[1732889114900,2.76728,3613.7,3613.1,3.0]
[1732889115190,2.7669,3614.2,3613.6,2.76729]
[1732889115898,3.5719,3614.7,3613.8,2.76716]
[1732889116069,2.76668,3614.5,3613.6,3.56006]
[1732889116271,2.76687,3614.2,3613.7,0.632739]
[1732889117053,2.76686,3614.2,3613.7,0.632739]
[1732889117300,2.76663,3614.5,3613.6,0.7928]
[1732889117465,0.8054,3614.7,3613.2,3.7765]
[1732889117666,2.7668,3614.3,3613.6,2.76731]
[1732889117899,0.8054,3614.7,3613.6,2.76731]
[1732889118055,2.7667,3614.5,3613.8,2.76716]
[1732889118399,2.76678,3614.3,3613.6,2.76726]
[1732889118597,2.76688,3614.2,3613.7,0.55347]
[1732889118802,2.76637,3614.9,3613.9,0.8021]
[1732889119171,2.76635,3614.9,3614.2,2.7668]
[1732889119365,2.76664,3614.5,3613.9,0.8021]
[1732889119569,2.76683,3614.3,3613.9,0.8021]
[1732889119773,2.76679,3614.3,3613.9,0.8021]
[1732889119981,2.76693,3614.2,3613.9,0.8021]
[1732889120164,2.76691,3614.2,3613.7,0.55347]
[1732889120378,2.76714,3613.9,3613.5,0.8]
[1732889120584,2.76699,3614.1,3613.5,1.456754]
[1732889120897,2.76714,3613.9,3613.5,0.8]
[1732889121258,2.76699,3614.1,3613.5,0.8]
[1732889121596,2.76679,3614.3,3613.7,2.76717]
[1732889121811,2.76688,3614.2,3613.5,3.56734]
[1732889121957,2.76679,3614.3,3613.5,0.8]
[1732889122158,2.76665,3614.5,3613.8,2.76711]
[1732889122396,2.76679,3614.3,3613.6,2.76726]
[1732889122602,2.76629,3615.0,3613.6,2.76726]
[1732889122603,2.76692,3614.2,3613.6,0.933471]
[1732889123656,2.76692,3614.2,3613.5,0.8]